Cogmind - Beta 14 @@@ ROGUE MODE // 2024.08.15 @ 20:01:43 Player: UnifiBg Result: Destroyed by Autobeam Turret with Autobeam Performance ------------- Evolutions (0) 0 Regions Visited (2) 400 Robots Destroyed (23) 115 Value Destroyed (357) 357 Prototype IDs (0) 0 Alien Tech Used (0) 0 Bonus (0) 0 TOTAL SCORE: 872 Bonus ------- None Cogmind --------- Core Integrity 0/250 Matter 265/300 Energy 198/200 System Corruption 0% Temperature Cool (18) Movement Rolling (95) Ox1 Location -10/Subcaves Parts ------- > --- POWER (1) -------- Subdweller Power Source > --- PROPULSION (2) --- Wheel Wheel > --- UTILITY (2) ------ Large Storage Unit Power Shielding > --- WEAPON (2) ------- Hammer > --- INVENTORY (15) --- Ion Engine Wheel Wheel Medium Matter Pod (100) Structural Scanner Seismic Detector Seismic Detector Seismic Detector Seismic Detector Seismic Detector Scrap Shield Fragment (49) Scrap Shield Fragment (47) Scrap Shield Fragment (43) Scrap Shield Fragment (40) Peak State ------------ > --- POWER ------------ Subdweller Power Source > --- PROPULSION ------- Wheel Wheel > --- UTILITY ---------- Large Storage Unit Seismic Detector > --- WEAPON ----------- Mining Laser Hammer > --- INVENTORY -------- Ion Engine Wheel Wheel Medium Matter Pod Structural Scanner Seismic Detector Seismic Detector Seismic Detector Seismic Detector Power Shielding Scrap Shield Fragment Scrap Shield Fragment Scrap Shield Fragment Scrap Shield Fragment [Rating: 9] Favorites ----------- Power Light Ion Engine Engine Light Ion Engine Propulsion Wheel Wheel Wheel Utility Seismic Detector Device Seismic Detector Storage Large Storage Unit Protection Power Shielding Weapon Assault Rifle Energy Gun Medium Laser Ballistic Gun Assault Rifle Special Weapon Mining Laser Impact Weapon Hammer Build | -11 -10 -10 ------- Run | Yrd Mat Sub Slots Evolved . | . . . Power . | . . . Propulsion . | . . . Utility . | . . . Weapon . | . . . Parts Attached 46 | 7 26 13 Power 4 | 1 1 2 Engine 4 | 1 1 2 Core . | . . . Reactor . | . . . Propulsion 15 | 2 9 4 Treads . | . . . Leg . | . . . Wheel 15 | 2 9 4 Hover . | . . . Flight . | . . . Utility 9 | 2 6 1 Device 4 | 1 3 . Storage 3 | 1 2 . Processor . | . . . Hackware . | . . . Protection 2 | . 1 1 Artifact . | . . . Weapon 18 | 2 10 6 Energy Gun 6 | 1 3 2 Energy Cannon . | . . . Ballistic Gun 3 | 1 1 1 Ballistic Cannon . | . . . Launcher . | . . . Special Weapon 4 | . 2 2 Impact Weapon 5 | . 4 1 Slashing Weapon . | . . . Piercing Weapon . | . . . Special Melee Weapon . | . . . Unidentified Prototypes . | . . . Parts Lost 7 | . . 7 Power 1 | . . 1 Propulsion 2 | . . 2 Utility . | . . . Weapon 4 | . . 4 Highest Loss Streak 3 | . . 3 To Critical Strikes . | . . . Average Slot Usage (%) 99 | . 100 98 Engine 14 | . 14 14 Wheel 28 | . 28 28 Device 11 | . 12 9 Storage 14 | . 14 14 Protection 2 | . 1 4 Energy Gun 12 | . 12 10 Ballistic Gun 11 | . 13 2 Special Weapon 1 | . . 4 Impact Weapon 2 | . 1 8 Peak Build Rating 9 | 7 8 9 Average Rating 7 | 5 7 8 On Entrance 5 | . 7 8 Naked Turns . | . . . Heaviest Build 30 | 13 28 30 Greatest Support 20 | 20 20 20 Greatest Overweight (x) 1 | . 1 1 Average Overweight (x) . | . . 1 Largest Inventory Capacity 15 | 8 15 15 Average Capacity 11 | 7 11 15 Most Carried 15 | 7 15 15 Average Carried 10 | 2 10 13 Final Capacity 15 | 8 15 15 Final Carried 15 | 7 15 14 Class Distribution -------------------- 100% | Mutant Dominant Class ---------------- Mutant | -10/Materials Mutant | -10/Subcaves Resources | -11 -10 -10 ----------- Run | Yrd Mat Sub Matter Collected 881 | 309 481 91 Remotely . | . . . Salvage Created 822 | 166 608 48 Parts 54 | 15 35 4 Haulers Intercepted . | . . . Recyclers Shooed . | . . . Parts Field Recycled . | . . . Retrieved Matter . | . . . Parts Self-Destructed 7 | . . 7 Prevented . | . . . Kills | -11 -10 -10 ------- Run | Yrd Mat Sub Combat Hostiles Destroyed 8 | . 6 2 Guns 7 | . 6 1 Classes Destroyed 7 | 2 3 2 Worker 3 | . 3 . Builder 3 | . 3 . Tunneler 5 | 4 1 . Recycler 4 | 1 3 . Swarmer 1 | . . 1 Grunt 6 | . 6 . Subdweller 1 | . . 1 Best Kill Streak 3 | 3 3 1 Combat Bots Only 2 | . 2 1 Max Kills in Single Turn 2 | 1 2 1 Gunslinging . | . . . Exploded . | . . . Melee . | . . . Uniques/NPCs Destroyed . | . . . Combat | -11 -10 -10 -------- Run | Yrd Mat Sub Hostile Shots Fired 99 | . 36 63 Missed 35 | . 7 28 Damage Taken 887 | . 364 523 Core 257 | . 166 91 Absorbed by Shields . | . . . Core Remaining (%) 100 | 100 . . Volleys Fired 79 | 13 58 8 Largest 2 | 2 2 2 Hottest 100 | 70 100 100 Shots Fired 142 | 26 105 11 Gun 129 | 26 97 6 Cannon . | . . . Launcher . | . . . Special 13 | . 8 5 Kinetic 63 | 13 47 3 Thermal 79 | 13 58 8 Explosive . | . . . Electromagnetic . | . . . Robot Hit Streak 11 | 5 11 1 Robot Miss Streak 5 | 2 4 5 Penetration Max . | . . . Secondary Targets 1 | . 1 . Max Gunslinging Chain 1 | . 1 . Shots Hit Robots 87 | 17 62 8 Core Hits 33 | 6 26 1 Critical Kills . | . . . Critical Parts Destroyed 2 | 1 . 1 Critical Strikes 8 | 1 6 1 Burn 6 | . 6 . Destroy 1 | 1 . . Smash 1 | . . 1 Melee Attacks 16 | . 9 7 Impact 16 | . 9 7 Slashing . | . . . Piercing . | . . . Sneak Attacks . | . . . Combat Hostiles . | . . . Follow-up Attacks . | . . . Damage Inflicted 1215 | 228 806 181 Guns 1045 | 228 806 11 Cannons . | . . . Explosions . | . . . Melee 170 | . . 170 Ramming . | . . . Kinetic 531 | 115 405 11 Thermal 514 | 113 401 . Explosive . | . . . Electromagnetic . | . . . Impact 170 | . . 170 Slashing . | . . . Piercing . | . . . Highest Corruption . | . . . Average Corruption . | . . . Corruption Purged . | . . . Corruption Blocked . | . . . Overload Shots . | . . . Overflow Damage 32 | . . 32 Projectiles . | . . . Explosions . | . . . Melee 32 | . . 32 Knockbacks 1 | . . 1 Impact 1 | . . 1 Kinetic . | . . . Secondary . | . . . Self-Inflicted Damage . | . . . Shots . | . . . Rammed 1 | . 1 . Targets Rammed 1 | . 1 . Kicked . | . . . Crushed . | . . . Highest Temperature 117 | 45 117 . Average Temperature 28 | 16 31 . Received Heat Transfer 405 | . 219 186 Siege Activations . | . . . Robots Corrupted 1 | . . 1 Combat Hostiles 1 | . . 1 Parts Fried 1 | . . 1 Impact Corruptions 2 | . . 2 Robots Melted . | . . . Combat Hostiles . | . . . Parts Melted 3 | 1 2 . Heat Transferred 1961 | 333 1628 . Parts Sabotaged . | . . . Parts Stolen . | . . . Parts Stripped . | . . . Power Chain Reactions . | . . . Alert | -11 -10 -10 ------- Run | Yrd Mat Sub Peak Influence 170 | 25 170 . Initial 16 | . 16 . Average 52 | 10 58 . Maximum Alert Level . | . . . Low Security (%) 100 | 100 100 . Level 1 . | . . . Level 2 . | . . . Level 3 . | . . . Level 4 . | . . . Level 5 . | . . . High Security . | . . . Max Security . | . . . Squads Dispatched 1 | . 1 . Investigation 1 | . 1 . Extermination . | . . . Reinforcement . | . . . Assault . | . . . Garrison . | . . . Intercept . | . . . Searches Triggered . | . . . Construction Impeded . | . . . Haulers Reinforced . | . . . Active Scanning Responses . | . . . Cargo Convoy Interrupts . | . . . Stealth | -11 -10 -10 --------- Run | Yrd Mat Sub Distress Signals . | . . . Communications Jammed . | . . . Distress Signals . | . . . Times Spotted 22 | . 13 9 Peak Tracking Total 5 | . 2 5 Tactical Retreats 8 | . 3 5 Traps | -11 -10 -10 ------- Run | Yrd Mat Sub Traps Triggered 5 | . 1 4 Indirectly . | . . . Trap Hack Attempts . | . . . Triggered . | . . . Disarmed . | . . . Reprogrammed . | . . . Reused . | . . . Traps Extracted . | . . . Installed . | . . . Triggered 1 | . . 1 Machines | -11 -10 -10 ---------- Run | Yrd Mat Sub Machines Disabled . | . . . Max in Single Turn . | . . . Machines Repaired . | . . . Machines Dismantled . | . . . Machines Sabotaged . | . . . Overloaded Fab Kills . | . . . Hacking | -11 -10 -10 --------- Run | Yrd Mat Sub Machines Accessed 6 | . 6 . Terminals 6 | . 6 . Fabricators . | . . . Repair Stations . | . . . Recycling Units . | . . . Scanalyzers . | . . . Garrison Access . | . . . Total Hacks 22 | . 22 . Successful 11 | . 11 . Failed 11 | . 11 . Catastrophic 1 | . 1 . Database Lockouts . | . . . Manual 18 | . 18 . Terminals 22 | . 22 . Fabricators . | . . . Repair Stations . | . . . Recycling Units . | . . . Scanalyzers . | . . . Garrison Access . | . . . Terminal Hacks 1 | . 1 . Record 1 | . 1 . Fabricator Hacks . | . . . Repair Station Hacks . | . . . Recycling Unit Hacks . | . . . Scanalyzer . | . . . Garrison Access Hacks . | . . . Unauthorized Hacks 10 | . 10 . Terminals 10 | . 10 . Track 1 | . 1 . Botnet 3 | . 3 . Operators 1 | . 1 . Skim 5 | . 5 . Fabricators . | . . . Repair Stations . | . . . Recycling Units . | . . . Scanalyzers . | . . . Garrison Access . | . . . Data Cores Recovered . | . . . Used . | . . . Hacking Detections 4 | . 4 . Full Trace Events . | . . . Feedback Events . | . . . Feedback Blocked . | . . . Robot Schematics Acquired . | . . . Robots Built . | . . . Authchips . | . . . Time . | . . . Total Robot Build Rating . | . . . Part Schematics Acquired . | . . . Parts Built . | . . . Authchips . | . . . Time . | . . . Total Part Build Rating . | . . . Parts Repaired . | . . . Time . | . . . Parts Recycled . | . . . Recycled Matter . | . . . Retrieved Matter . | . . . Retrieved Components . | . . . Parts Scanalyzed . | . . . Part Schematics Acquired . | . . . Parts Damaged . | . . . Bothacking | -11 -10 -10 ------------ Run | Yrd Mat Sub Used RIF Installer . | . . . Robots Hacked . | . . . Non-combat . | . . . Combat . | . . . Robot Hacks Applied . | . . . Relay Couplers Released . | . . . Fabnet Peak Effective % . | . . . Robots Rewired . | . . . Allies Hacked . | . . . Hacks Repelled . | . . . Allies | -11 -10 -10 -------- Run | Yrd Mat Sub Total Allies . | . . . Largest Group . | . . . Highest-Rated Group . | . . . Highest-Rated Ally . | . . . Total Orders . | . . . Ally Attacks . | . . . Total Damage . | . . . Kills . | . . . Allies Corrupted . | . . . Allies Melted . | . . . Intel | -11 -10 -10 ------- Run | Yrd Mat Sub Robot Analysis Total . | . . . Derelict Logs Recovered . | . . . Drone Launches . | . . . Drone Recoveries . | . . . Exploration | -11 -10 -10 ------------- Run | Yrd Mat Sub Turns Passed 1833 | 169 1376 288 Spaces Moved 1494 | 141 1128 225 Core 2 | 2 . . Treads . | . . . Legs . | . . . Wheels 1492 | 139 1128 225 Hover . | . . . Flight . | . . . Fastest Speed 50 | 50 80 95 Average Speed 86 | 79 85 95 Slowest Speed 95 | 80 95 95 Overloaded Moves . | . . . Propulsion Burnouts . | . . . Robots Hopped . | . . . Cave-ins Triggered . | . . . Exploration Rate (%) 33 | 5 90 6 Regions Visited 2 Branch Regions 1 Pre-discovered Areas 2 | . 2 . Known Exits Taken 1 | . 1 . Unknown Exits Taken 1 | 1 . . Scrap Searched 1 | . . 1 Spaces Dug 15 | . 15 . Terrain Destroyed 15 | . 15 . Melee 7 | . 7 . Projectile 8 | . 8 . AOE . | . . . Terrain Rammed . | . . . Walls Destroyed . | . . . Machines Disabled . | . . . Actions | -11 -10 -10 --------- Run | Yrd Mat Sub Total 1826 | 168 1400 258 Wait 150 | 1 149 . Move 1492 | 140 1127 225 Hop . | . . . Pick Up 27 | 7 15 5 Fast Attach 7 | 7 . . Attach 6 | . . 6 Detach . | . . . Swap 33 | . 26 7 Drop 15 | . 15 . Fire 79 | 13 58 8 Melee 16 | . 9 7 Ram 1 | . 1 . Kick . | . . . Crush . | . . . Escape Stasis . | . . . Rewire . | . . . Trap . | . . . Miscellaneous . | . . . Route ------- -11/Scrapyard -10/Materials (discovered 5 exits: *Mat x3 / Min / *Sub) -10/Subcaves (discovered 1 exit: [*Rec]) History --------- Turn | Location | Event 2 | -11/Scrapyard | Met Revision 17 12 | -11/Scrapyard | Discovered new exit (range 16) 170 | -11/Scrapyard | Entered Materials 311 | -10/Materials | Build established: Mutant 679 | -10/Materials | Discovered new exit (range 13) 729 | -10/Materials | Identified exit to Materials 729 | -10/Materials | Identified exit to Subcaves 785 | -10/Materials | Learned location of Recycling (-8) 832 | -10/Materials | Learned Storage emergency access door positions 867 | -10/Materials | Identified exit to Mines 890 | -10/Materials | Loaded intel: 8 trap records 905 | -10/Materials | Learned Storage stockpile data 908 | -10/Materials | Learned location of 3 exits from Materials 973 | -10/Materials | Learned Storage security intel 1017 | -10/Materials | Learned Storage security intel 1338 | -10/Materials | Core integrity fell below 50% 1546 | -10/Materials | Entered Subcaves 1631 | -10/Subcaves | Lost 3 parts (1p1n1w) 1661 | -10/Subcaves | Discovered new exit (range 9) 1707 | -10/Subcaves | Core integrity fell below 20% 1834 | -10/Subcaves | Destroyed by Autobeam Turret with Autobeam Last Messages --------------- 01701_ 3M-VE8(R) knocked back. 01710_ Wheel destroyed. 01711_ Subatomizers dissect the Sub. Power Source. 01714_ EM Pulse Gun destroyed. 01714_ Destroyed Sub. Power Source. 01714_ 3M-VE8(R) system corrupted by crushing effect. 01716_ 3M-VE8(R) misfires. 01719_ 3M-VE8(R) affixes Scrap Shield Fragment to Scrap Shield. 01720_ 3M-VE8(R) suffers critical hit (Smash). 01720_ Destroyed Sub. Monowheel. 01720_ 3M-VE8(R) system corrupted by crushing effect. 01721_ 3M-VE8(R) system terminally corrupted. 01721_ Sub. Laser fried. 01723_ Acquired Scrap Shield Fragment. 01724_ Acquired 5 matter. 01726_ Acquired Scrap Shield Fragment. 01735_ Acquired Sub. Power Source. 01736_ Subatomizers dissect the Humpback. 01830_ Mining Laser destroyed. Map ----- +----------------------------------------------------+ | ?????????????????????????????????????????????????? | | ?????????????????????????????????????????????????? | | ?????????????????????????????????????????????????? | | ?????????????????????????????????????????????????? | | ?????????????????????????????????????????????????? | | ?????????????????????????????????????????????????? | | ?????????????????????????????????????????????????? | | ?????????????????????????????????????????????????? | | ?????????????????????????????????????????????????? | | ?????????????????????????????????????????????????? | | ?????????????????????????????????????????????????? | | ?????????????????????????????????????????????????? | | ?????????????????????????????????????????????????? | | ?????????????????????????????????????????????????? | | ?????????????????????????????????????????????????? | | ?????????????????????????????????????????????????? | | ?????????????????????????????????????????????????? | | ?????????????????????????????????????????????????? | | ?????????????????????????????????????????????????? | | ?????????????????????????????????????????????????? | | ?????????????????????????????????????????????????? | | ????????????????????????###???#####??????????????? | | ????????????????????#####<#####;;;####???######?#? | | ????????????????????#"""" """";; ;# ##### # # # | | ????????????????????#" " " "; ;; ^# % | | ????????????????????#" t@t "; ^ ## | | ????????????????????# ; ^# ### # % | | ????????????????????# ; ; #??#?? | | ????????????????????#" % #; #????? | | ??????????????????###### ;;####^ ##????? | | ????????????????? %;#??# " ##?????? | | ?????????????????? ### ;"###??????? | | ??????????????????# # ;; """" #????????? | | ??????????????????##?# #; ######????????? | | ???????????????????? # ### # #????????????? | | ??????????????????? ??## ## ###??????????? | | ?????????????????? #???# #??????????? | | ?????????????????? #### #????# #?##???????? | | ??????????????????????##?????### ## #???????? | | ???????????????????????????????## #???????? | | ????????????????????????????????# ## ##???????? | | ????????????????????????????????## ### #????????? | | ?????????????????????????????????###?# #????????? | | ????????????????????????????????????## #????????? | | ???????????????????????????????###### #????????? | | ???????????????????????????????#" ## #????????? | | ???????????????????????????????# ### #????????? | | ???????????????????????????????#!##"#" ##???????? | | ???????????????????????????????# # ##??????? | | ???????????????????????????????# % ##" ##?????? | +----------------------------------------------------+ Best States ------------- Heat Dissipation 25 Energy Generation 15 Energy Capacity 250 Matter Stores 300 Matter Capacity 300 Sight Range 16 Terrain Scan Density 10 Power Shielding 33 Evasion (%) 44 Item Schematics ----------------- None Robot Schematics ------------------ None Fabricated ------------ Nothing Alien Tech Used ----------------- None Achievements -------------- None Challenges ------------ None Game ------ Seed PrecisionGravitonCalibrator Manual? 0 Play Time 00:21:54 Cumulative 25.0 hours Start 2024.08.15 @ 19:39:40 End 2024.08.15 @ 20:01:43 Sessions 1 Manual Loads 0 Difficulty Rogue Special Mode None Game No. 28 Rogue 28 Adventurer 0 Explorer 0 Win Type - Total 0 Types 0/0/0/0/0/0/0/0/0 Lore% 16 Gallery% 28 Achievement% 22 Wizard Run 0 Options --------- Layout 2 ASCII 0 Keyboard 1 Movement Arrows Keybinds 0 Fullscreen 2 Font 20/SmallcapsGlow Map View 56x54 Zoom Use 0% Tactical HUD 1 Map Filters NONE Filters NONE Steam X RUN: 1898cd13-3420-450f-90c7-c218c4bd9fca